bitfinex/quotes_SOLUSD_20220117
["timestamp","ask_amount","ask_price","bid_price","bid_amount"]
[1642448078919,0.25,139.57,139.52,54.16125222]
[1642448079715,16.7503,139.58,139.52,54.16125222]
[1642448079914,6.0,139.58,139.53,0.25]
[1642448080120,3.87416919,139.59,139.53,10.54]
[1642448080415,3.87416919,139.59,139.53,10.8]
[1642448081049,7.96217395,139.6,139.53,82.45]
[1642448081416,7.96217395,139.6,139.53,88.45]
[1642448081615,7.96217395,139.6,139.53,16.8]
[1642448081817,7.96217395,139.6,139.53,16.54]
[1642448082116,3.87416919,139.6,139.53,16.29]
[1642448082316,41.0917226,139.61,139.53,16.29]
[1642448082915,0.25,139.6,139.53,16.29]
[1642448083316,49.55819718,139.58,139.53,16.29]
[1642448087019,49.55819718,139.58,139.53,16.55]
[1642448087220,49.55819718,139.58,139.53,16.29]
[1642448087419,0.25,139.57,139.53,16.29]
[1642448088222,0.25,139.57,139.52,0.03236099]
[1642448090121,45.85279838,139.55,139.52,0.03236099]
[1642448090323,6.31439994,139.54,139.52,0.03236099]
[1642448090722,6.06439994,139.54,139.52,0.03236099]
[1642448092423,0.25,139.53,139.52,0.03236099]
[1642448093425,6.06439994,139.54,139.52,0.03236099]
[1642448093626,0.25,139.53,139.52,0.03236099]
[1642448097329,42.25,139.53,139.52,0.03236099]
[1642448097531,0.25,139.53,139.45,24.523]
[1642448097830,10.756,139.51,139.43,10.29]
[1642448098232,37.89105537,139.5,139.43,10.29]
[1642448099630,10.7568,139.49,139.43,10.29]
[1642448099832,0.25,139.48,139.43,10.29]
[1642448100833,0.25,139.48,139.43,16.29]
[1642448101232,10.7557,139.51,139.43,16.55]
[1642448101432,3.87416919,139.52,139.44,0.25]
[1642448101632,3.87416919,139.52,139.44,10.54]
[1642448101836,0.25,139.51,139.44,40.7884]
[1642448102233,0.25,139.51,139.45,37.51432411]
[1642448102634,55.37002343,139.53,139.45,43.77432411]
[1642448102834,10.7542,139.53,139.46,0.25]
[1642448103763,0.25,139.52,139.46,0.25]
[1642448103959,10.7542,139.53,139.46,0.25]
[1642448104663,3.87416919,139.55,139.46,83.93223023]
[1642448104862,3.87416919,139.55,139.46,114.72873023]
[1642448106167,10.7515,139.56,139.46,114.72873023]
[1642448107564,40.00483147,139.57,139.46,114.72873023]
[1642448107764,14.62436919,139.58,139.46,114.72873023]
[1642448108367,14.62436919,139.58,139.46,137.26183023]
[1642448108566,3.87416919,139.58,139.46,148.01083023]
[1642448108766,3.87416919,139.58,139.46,159.61102033]
[1642448109165,45.92257022,139.58,139.46,159.61102033]
[1642448109568,42.04840103,139.58,139.47,128.59]
[1642448109768,52.79840103,139.58,139.48,47.01100246]
[1642448109968,52.79840103,139.58,139.48,118.66100246]
[1642448110168,52.79840103,139.58,139.48,88.45]
[1642448110368,52.79840103,139.58,139.48,16.54]
[1642448110568,52.79840103,139.58,139.49,23.2995]
[1642448110769,52.79840103,139.58,139.5,10.29]
[1642448110972,0.25,139.57,139.5,10.29]
[1642448111170,10.7524,139.55,139.5,16.29]
[1642448111469,42.53673489,139.54,139.5,16.29]
[1642448112070,3.87416919,139.59,139.5,16.29]
[1642448112271,3.87416919,139.57,139.51,0.25]
[1642448112471,3.87416919,139.57,139.51,10.54]
[1642448112870,3.87416919,139.57,139.54,1.2231914]
[1642448113072,36.77384079,139.56,139.54,1.2231914]
[1642448113472,6.06439994,139.55,139.54,1.2231914]
[1642448113672,36.77384079,139.56,139.54,1.2231914]
[1642448114373,3.87416919,139.58,139.54,1.2231914]
[1642448114977,3.87416919,139.59,139.54,1.2231914]
[1642448115275,0.25,139.58,139.54,1.4831914]
[1642448115674,3.87416919,139.59,139.54,1.2231914]
[1642448115877,38.01801867,139.58,139.54,1.2231914]
[1642448117078,0.25,139.57,139.54,1.2231914]
[1642448117277,6.06439994,139.56,139.54,1.2231914]
[1642448117477,35.52940983,139.55,139.54,1.2231914]
[1642448119080,35.77940983,139.55,139.54,1.2231914]
[1642448119679,35.52940983,139.55,139.54,1.2231914]
[1642448119978,3.03219997,139.56,139.54,1.4831914]
[1642448120179,3.87416919,139.59,139.54,1.4831914]
[1642448120378,0.25,139.58,139.54,1.4831914]
[1642448120979,42.36416025,139.58,139.54,1.4831914]
[1642448122783,42.36416025,139.58,139.54,7.4831914]
[1642448122984,42.36416025,139.58,139.54,1.4831914]
[1642448123988,42.36416025,139.58,139.54,1.2231914]
[1642448124186,53.11416025,139.58,139.54,1.2231914]
[1642448124989,53.11416025,139.58,139.51,32.8452]
[1642448125187,53.11416025,139.58,139.47,10.29]
[1642448125386,53.11416025,139.58,139.47,16.29]
[1642448125587,59.11416025,139.58,139.47,16.29]
[1642448125789,62.98832944,139.58,139.47,16.29]
[1642448126286,62.98832944,139.58,139.48,0.25]
[1642448126485,62.98832944,139.58,139.48,22.8518]
[1642448126690,7.92346176,139.57,139.48,61.30273075]
[1642448126889,11.0014,139.56,139.48,61.30273075]
[1642448127088,44.98551942,139.55,139.48,61.30273075]
[1642448127289,0.25,139.54,139.48,61.30273075]
[1642448127692,0.25,139.54,139.48,71.59273075]
[1642448128292,0.25,139.54,139.48,33.1518]
[1642448130797,0.25,139.54,139.48,39.1518]
[1642448130994,0.25,139.54,139.48,33.1518]
[1642448132699,0.25,139.54,139.48,39.1518]
[1642448133903,0.25,139.54,139.49,37.45696617]
[1642448134102,44.98551942,139.55,139.49,37.70696617]
[1642448134304,44.98551942,139.55,139.49,37.96696617]
[1642448135304,0.25,139.54,139.49,37.96696617]
[1642448135705,0.25,139.54,139.49,43.96696617]
[1642448135905,44.98551942,139.55,139.49,43.96696617]
[1642448138132,44.98551942,139.55,139.49,115.61696617]
[1642448138531,44.98551942,139.55,139.49,125.90696617]
[1642448141736,44.98551942,139.55,139.49,125.65696617]
[1642448142137,0.077335,139.54,139.49,125.65696617]
[1642448143138,0.077335,139.54,139.5,0.25]
[1642448143338,0.077335,139.54,139.49,125.65696617]
[1642448143539,0.327335,139.54,139.49,88.2]
[1642448143739,0.327335,139.54,139.49,82.2]
[1642448143938,0.077335,139.54,139.49,82.2]
[1642448144140,0.327335,139.54,139.49,82.2]
[1642448144340,0.077335,139.54,139.49,82.2]
[1642448144540,0.327335,139.54,139.49,82.2]
[1642448144741,0.077335,139.54,139.49,82.2]
[1642448144940,0.077335,139.54,139.49,88.2]
[1642448145144,0.327335,139.54,139.49,82.2]
[1642448145541,0.077335,139.54,139.49,82.2]
[1642448145743,0.077335,139.54,139.49,88.2]
[1642448146844,0.077335,139.54,139.5,0.25]
[1642448148848,0.077335,139.54,139.52,0.35317675]
[1642448149048,6.06439994,139.53,139.52,0.35317675]
[1642448149647,0.077335,139.54,139.52,0.35317675]
[1642448153950,0.077335,139.54,139.5,29.4174]
[1642448154151,0.077335,139.54,139.5,39.7074]
[1642448155254,0.077335,139.54,139.5,39.9674]
[1642448155455,0.077335,139.54,139.5,111.6174]
[1642448157254,0.077335,139.54,139.5,113.35963023]
[1642448159054,0.077335,139.54,139.5,113.09963023]
[1642448159555,0.077335,139.54,139.5,39.7074]
[1642448160255,0.077335,139.54,139.5,88.85544668]
[1642448160657,0.077335,139.54,139.5,89.11544668]
[1642448160856,0.077335,139.54,139.5,88.86544668]
[1642448161356,0.077335,139.54,139.5,82.86544668]
[1642448162366,0.077335,139.54,139.5,33.7174]
[1642448162759,0.077335,139.54,139.51,0.25]
[1642448162960,0.077335,139.54,139.53,0.61379548]
[1642448163359,6.14173494,139.54,139.53,0.61379548]
[1642448164184,0.077335,139.54,139.53,0.61379548]
[1642448164784,0.077335,139.54,139.53,0.86379548]
[1642448164984,0.077335,139.54,139.53,0.61379548]
[1642448168387,0.077335,139.54,139.53,0.86379548]
[1642448168988,0.077335,139.54,139.53,0.61379548]
[1642448170290,0.077335,139.54,139.53,0.86379548]
[1642448170890,0.077335,139.54,139.53,11.15379548]
[1642448171293,0.077335,139.54,139.53,11.41379548]
[1642448172293,33.71042926,139.57,139.53,11.16379548]
[1642448172493,0.25,139.56,139.53,11.16379548]
[1642448172693,6.06439994,139.55,139.53,11.16379548]
[1642448174293,3.03219997,139.55,139.53,11.16379548]
[1642448174493,2.03094372,139.56,139.53,11.16379548]
[1642448175195,3.03219997,139.55,139.53,11.16379548]
[1642448175394,6.06439994,139.55,139.53,11.16379548]
[1642448176496,43.79451127,139.54,139.53,11.16379548]
[1642448177202,8.09534366,139.55,139.53,11.16379548]
[1642448177499,2.03094372,139.55,139.53,11.16379548]
[1642448178100,2.03094372,139.56,139.53,11.16379548]
[1642448178301,47.44383763,139.56,139.53,11.16379548]
[1642448178699,2.03094372,139.55,139.53,11.16379548]
[1642448181705,1.03094372,139.55,139.53,10.90379548]
[1642448183408,6.06439994,139.54,139.53,10.90379548]
[1642448183605,46.69506377,139.57,139.53,10.90379548]
[1642448184607,14.62316919,139.59,139.53,10.90379548]
[1642448184806,0.25,139.58,139.53,11.16379548]
[1642448185006,3.87416919,139.59,139.53,11.16379548]
[1642448185408,3.87416919,139.59,139.54,0.25]
[1642448185609,3.87416919,139.59,139.54,40.47856792]
[1642448185810,51.87711689,139.6,139.54,40.73856792]
[1642448187013,0.25,139.59,139.54,40.73856792]
[1642448187414,47.78969618,139.6,139.54,40.73856792]
[1642448187614,0.25,139.59,139.54,40.73856792]
[1642448189838,0.25,139.59,139.54,0.26]
[1642448190040,0.25,139.59,139.53,0.86379548]
[1642448190240,0.25,139.59,139.53,0.61379548]
[1642448191844,58.53789618,139.6,139.53,0.61379548]
[1642448192443,58.53789618,139.6,139.53,0.86379548]
[1642448193145,4.3375539,139.59,139.53,0.61379548]
[1642448193846,4.12416919,139.59,139.53,0.61379548]
[1642448194846,8.21189732,139.59,139.53,0.61379548]
[1642448195845,8.21189732,139.59,139.53,0.86379548]
[1642448196046,8.21189732,139.59,139.53,0.61379548]
[1642448196651,7.96189732,139.59,139.53,0.86379548]
[1642448196949,7.96189732,139.59,139.54,45.64993351]
[1642448197347,7.96189732,139.59,139.54,45.90993351]
[1642448197547,58.53789618,139.6,139.54,45.90993351]
[1642448197947,58.53789618,139.6,139.54,0.26]
[1642448198148,58.53789618,139.6,139.53,0.61379548]
[1642448198447,58.53789618,139.6,139.53,0.86379548]
[1642448199048,0.25,139.59,139.53,0.86379548]
[1642448199649,58.53789618,139.6,139.53,0.86379548]
[1642448199851,58.53789618,139.6,139.53,0.61379548]
[1642448201254,0.25,139.59,139.53,0.61379548]
[1642448202154,10.9991,139.59,139.53,0.61379548]
[1642448202355,12.75529958,139.59,139.53,0.61379548]
[1642448202557,10.9991,139.59,139.53,0.61379548]
[1642448203157,16.9991,139.59,139.53,0.61379548]
[1642448203557,35.57831233,139.57,139.53,0.61379548]
[1642448204258,0.25,139.56,139.53,0.61379548]
[1642448204462,6.06439994,139.55,139.53,0.61379548]
[1642448205260,36.59611492,139.54,139.53,0.61379548]
[1642448206864,6.06439994,139.55,139.53,0.61379548]
[1642448207966,41.92190242,139.55,139.53,0.61379548]
[1642448208266,6.06439994,139.54,139.53,0.61379548]
[1642448211666,41.92190242,139.55,139.53,0.61379548]
[1642448212066,47.98630236,139.55,139.53,0.61379548]
[1642448213873,41.92190242,139.55,139.53,0.61379548]
[1642448214274,3.87416919,139.59,139.53,0.61379548]
[1642448214975,14.62286919,139.6,139.53,0.61379548]
[1642448215174,42.76415845,139.59,139.53,0.61379548]
[1642448215375,53.51335845,139.59,139.53,0.61379548]
[1642448216200,53.26335845,139.59,139.53,0.61379548]
[1642448217001,57.13752764,139.59,139.53,0.61379548]
[1642448217802,0.25,139.58,139.53,0.61379548]
[1642448218002,10.9998,139.58,139.53,0.61379548]
[1642448219701,10.9998,139.58,139.53,50.15384839]
[1642448220202,46.38832764,139.59,139.53,50.41384839]
[1642448220402,3.87416919,139.59,139.53,50.41384839]
[1642448220602,3.87416919,139.59,139.54,0.25]
[1642448220803,14.62286919,139.6,139.53,50.41384839]
[1642448221003,14.62286919,139.6,139.53,0.87379548]
[1642448221204,14.62286919,139.6,139.53,0.61379548]
[1642448221803,14.62286919,139.6,139.53,0.86379548]
[1642448222204,35.09724108,139.59,139.53,0.86379548]
[1642448222906,0.25,139.58,139.53,0.61379548]
[1642448223914,35.09724108,139.59,139.53,0.61379548]
[1642448224113,35.09724108,139.59,139.53,39.22331317]
[1642448224317,35.09724108,139.59,139.53,45.48331317]
[1642448224615,35.09724108,139.59,139.53,6.87379548]
[1642448224816,35.09724108,139.59,139.53,0.87379548]
[1642448225018,45.84634108,139.59,139.53,0.61379548]
[1642448225323,0.25,139.58,139.53,0.61379548]
[1642448226828,0.25,139.58,139.53,49.37870356]
[1642448227029,0.25,139.58,139.53,49.63870356]
[1642448227460,45.84634108,139.59,139.53,49.63870356]
[1642448228357,45.84634108,139.59,139.53,0.87379548]
[1642448228558,0.25,139.58,139.53,0.61379548]
[1642448230561,11.0,139.58,139.53,0.61379548]
[1642448234162,0.25,139.58,139.53,0.61379548]
[1642448235262,38.97141027,139.59,139.53,0.86379548]
[1642448235464,38.97141027,139.59,139.53,0.61379548]
[1642448236067,38.97141027,139.59,139.53,46.0881192]
[1642448236264,38.97141027,139.59,139.53,46.5981192]
[1642448236964,3.87416919,139.59,139.53,46.5981192]
[1642448237166,3.87416919,139.59,139.54,10.29]
[1642448237366,3.87416919,139.59,139.55,0.25]
[1642448237768,3.87416919,139.6,139.55,0.25]
[1642448237968,43.34225155,139.6,139.55,0.25]
[1642448238769,39.46808236,139.6,139.55,0.25]
[1642448239068,3.87416919,139.62,139.55,0.25]
[1642448239269,0.25,139.61,139.55,0.25]
[1642448239868,4.12416919,139.61,139.55,0.25]
[1642448240068,45.03089881,139.6,139.55,0.25]
[1642448240272,45.28089881,139.6,139.55,0.25]
[1642448240670,45.03089881,139.6,139.55,0.25]
[1642448240873,0.25,139.59,139.54,40.4426]
[1642448241072,0.25,139.59,139.54,34.4426]
[1642448241471,45.03089881,139.6,139.54,34.4426]
[1642448241672,48.905068,139.6,139.54,34.4426]
[1642448241871,0.25,139.59,139.54,34.4426]
[1642448242170,0.25,139.59,139.54,24.1526]
[1642448243773,4.12416919,139.59,139.54,24.1526]
[1642448243971,4.12416919,139.59,139.58,0.61379548]
[1642448244478,9.93856913,139.59,139.58,0.61379548]
[1642448244679,6.31439994,139.59,139.58,0.61379548]
[1642448245078,6.06439994,139.59,139.58,0.61379548]
[1642448246807,6.31439994,139.59,139.58,0.61379548]
[1642448251811,3.28219997,139.59,139.58,0.61379548]
[1642448252012,0.25,139.59,139.58,0.61379548]
[1642448252512,0.25,139.59,139.54,24.1526]
[1642448252713,0.25,139.58,139.54,24.1526]
[1642448253112,55.77929881,139.6,139.54,24.1526]
[1642448253314,0.25,139.59,139.54,24.1526]
[1642448253514,0.25,139.59,139.54,68.72500382]
[1642448253817,0.25,139.59,139.54,24.1526]
[1642448254916,0.25,139.59,139.54,71.04766065]
[1642448255733,0.25,139.59,139.54,24.1526]
[1642448256116,10.999,139.59,139.54,24.1526]
[1642448257820,0.25,139.59,139.54,24.1526]
[1642448260223,55.77909881,139.6,139.54,24.4126]
[1642448260523,0.25,139.59,139.54,24.4126]
[1642448260924,3.87416919,139.61,139.54,24.4126]
[1642448261324,0.25,139.6,139.54,24.4126]
[1642448261924,0.25,139.6,139.54,30.4126]
[1642448262324,14.57296919,139.62,139.55,0.25]
[1642448262524,3.87416919,139.62,139.55,16.516]
[1642448263025,3.87416919,139.62,139.56,23.8215]
[1642448263426,51.06831953,139.62,139.57,36.21326336]
[1642448263826,3.87416919,139.62,139.57,36.47326336]
[1642448264626,14.61986919,139.64,139.57,36.47326336]
[1642448264853,56.63330562,139.64,139.57,36.47326336]
[1642448265630,56.63330562,139.64,139.58,22.8256]
[1642448265831,0.25,139.63,139.58,23.0856]
[1642448268633,0.25,139.63,139.58,23.39360157]
[1642448271440,0.25,139.63,139.58,62.45348292]
[1642448272771,0.25,139.63,139.58,23.39360157]
[1642448273971,0.25,139.63,139.58,23.13360157]
[1642448274180,0.25,139.63,139.58,0.30800157]
[1642448275674,10.996,139.63,139.58,0.30800157]
[1642448276076,10.996,139.63,139.6,0.02929041]
[1642448276279,6.06439994,139.62,139.6,0.02929041]
[1642448276680,0.25,139.61,139.6,0.02929041]
[1642448278679,16.81129994,139.62,139.6,0.02929041]
[1642448279581,42.89096857,139.61,139.6,0.02929041]
[1642448280282,43.14096857,139.61,139.6,0.02929041]
[1642448280984,43.14096857,139.61,139.58,0.33727186]
[1642448281189,0.25,139.6,139.58,0.33727186]
[1642448284622,36.07327059,139.6,139.58,0.33727186]
[1642448284919,6.06439994,139.59,139.58,0.33727186]
[1642448285321,6.31439994,139.59,139.58,0.33727186]
[1642448285520,6.06439994,139.59,139.58,0.33727186]
[1642448286722,50.25245689,139.61,139.58,0.33727186]
[1642448286925,0.25,139.59,139.58,0.33727186]
[1642448287125,6.06439994,139.6,139.58,0.33727186]
[1642448289428,50.25245689,139.61,139.58,0.33727186]
[1642448289625,0.25,139.6,139.58,0.33727186]
[1642448291025,0.25,139.6,139.58,0.30800157]
[1642448291639,3.03219997,139.59,139.58,0.30800157]
[1642448291827,10.36219997,139.59,139.58,0.30800157]
[1642448293027,3.28219997,139.59,139.58,0.30800157]
[1642448293228,6.31439994,139.59,139.58,0.30800157]
[1642448296029,0.25,139.59,139.58,0.33733221]
[1642448296230,10.7482,139.6,139.58,0.33733221]
[1642448296831,13.78039997,139.6,139.58,0.33733221]
[1642448297233,14.62126919,139.62,139.58,0.33733221]
[1642448298031,10.7471,139.62,139.58,0.33733221]
[1642448298434,39.88315642,139.61,139.58,0.33733221]
[1642448298632,40.13315642,139.61,139.58,0.33733221]
[1642448298833,3.03219997,139.6,139.58,0.33733221]
[1642448300236,3.03219997,139.59,139.58,0.33733221]
[1642448301136,9.997e-05,139.59,139.58,0.33733221]
[1642448301336,3.87416919,139.64,139.58,0.33733221]
[1642448301635,3.87416919,139.64,139.59,10.29]
[1642448301835,2.04125424,139.61,139.6,0.25]
[1642448302036,3.87416919,139.64,139.6,1.99223023]
[1642448302339,3.87416919,139.64,139.61,52.98739785]
[1642448302536,3.87416919,139.64,139.61,54.72962808]
[1642448302836,3.87416919,139.64,139.62,0.25]
[1642448303036,3.87416919,139.7,139.62,0.25]
[1642448303237,3.87416919,139.7,139.62,22.7609]
[1642448303738,3.87416919,139.7,139.62,30.76313023]
[1642448304038,49.12646425,139.69,139.62,30.76313023]
[1642448304238,49.12646425,139.69,139.62,30.51313023]
[1642448304638,49.12646425,139.69,139.62,28.5109]
[1642448304841,0.25,139.68,139.62,38.8009]
[1642448305040,0.25,139.68,139.62,32.8009]
[1642448306043,0.25,139.68,139.64,0.02920998]
[1642448306940,3.87416919,139.69,139.64,0.02920998]
[1642448307944,0.25,139.68,139.64,0.02920998]
[1642448308344,52.27229899,139.7,139.64,0.02920998]
[1642448309847,0.25,139.69,139.64,0.02920998]
[1642448310943,0.25,139.69,139.63,0.27916978]
[1642448313546,63.01309899,139.7,139.63,0.27916978]
[1642448314949,52.27229899,139.7,139.67,0.30800157]
[1642448315149,3.28219997,139.69,139.68,3.0321]
[1642448315647,3.28219997,139.69,139.67,0.30800157]
[1642448317377,0.25,139.69,139.68,3.0321]
[1642448317552,3.87416919,139.71,139.68,3.0321]
[1642448318752,0.25,139.7,139.68,3.0321]
[1642448319352,0.25,139.71,139.68,3.0321]
[1642448320156,3.03219997,139.7,139.68,3.0321]
[1642448320352,0.25,139.69,139.68,3.0321]
[1642448322855,3.28219997,139.69,139.67,0.30800157]
[1642448323052,3.03219997,139.69,139.67,0.30800157]
[1642448323654,3.03219997,139.69,139.68,3.0321]
[1642448323855,3.87416919,139.71,139.68,3.0321]
[1642448324257,40.81200486,139.72,139.68,3.0321]
[1642448324455,0.25,139.71,139.68,3.0321]
[1642448324657,40.81200486,139.72,139.68,3.0321]
[1642448325055,51.55110486,139.72,139.68,3.0321]
[1642448325755,0.25,139.71,139.68,3.0321]
[1642448325954,8.20871341,139.71,139.68,3.0321]
[1642448326161,8.20871341,139.71,139.7,0.02908942]
[1642448327656,11.24091338,139.71,139.7,0.02908942]
[1642448331065,11.24091338,139.71,139.67,0.33709099]
[1642448332161,7.15636916,139.71,139.67,0.33709099]
[1642448333798,17.89626916,139.71,139.67,0.33709099]
[1642448335195,7.95891071,139.7,139.67,0.33709099]
[1642448335397,48.82469251,139.69,139.67,0.33709099]
[1642448335998,48.82469251,139.69,139.67,0.30800157]
[1642448338903,48.57469251,139.69,139.67,0.30800157]
[1642448339101,3.03219997,139.68,139.67,0.30800157]
[1642448340702,3.87416919,139.7,139.67,3.34010157]
[1642448341103,3.87416919,139.7,139.67,3.36925126]
[1642448341303,7.95884554,139.7,139.67,3.36925126]
[1642448341703,3.03219997,139.69,139.67,3.36925126]
[1642448342103,3.03219997,139.69,139.67,0.33715126]
[1642448343103,3.87416919,139.7,139.67,0.33715126]
[1642448343904,44.58427003,139.7,139.67,0.33715126]
[1642448345706,3.87416919,139.71,139.68,3.0321]
[1642448346104,3.87416919,139.71,139.69,0.02910951]
[1642448346404,3.87416919,139.72,139.69,0.02910951]
[1642448346803,0.25,139.71,139.69,0.02910951]
[1642448347005,0.25,139.71,139.7,3.0321]
[1642448348003,0.25,139.71,139.69,0.02910951]
[1642448348205,3.03219997,139.7,139.69,0.02910951]
[1642448351105,3.03219997,139.7,139.67,0.33711108]
[1642448351406,0.25,139.71,139.68,3.0321]
[1642448354113,41.6057341,139.72,139.68,3.0321]
[1642448356009,41.6057341,139.72,139.7,0.02908942]
[1642448356209,3.03219997,139.71,139.7,0.02908942]
[1642448361021,3.03219997,139.71,139.67,0.33709099]
[1642448366167,3.03219997,139.71,139.69,0.02910951]
[1642448368473,52.3448341,139.72,139.69,3.06120951]
[1642448368972,3.62416919,139.72,139.69,3.06120951]
[1642448369576,1.17765899,139.73,139.69,3.06120951]
[1642448370477,1.17765899,139.73,139.69,26.76100951]
[1642448370978,1.17765899,139.73,139.71,0.02906934]
[1642448372178,3.03219997,139.72,139.71,0.02906934]
[1642448372778,1.17765899,139.73,139.71,0.02906934]
[1642448374179,3.03219997,139.72,139.71,0.02906934]
[1642448375382,1.17765899,139.73,139.71,3.06116934]
[1642448378112,3.03219997,139.72,139.71,3.06116934]
[1642448378313,3.03219997,139.72,139.71,0.02906934]
[1642448379516,1.17765899,139.73,139.71,3.06116934]
[1642448380518,47.33298184,139.74,139.71,3.06116934]
[1642448380919,36.59498184,139.74,139.71,3.06116934]
[1642448381519,10.7365,139.76,139.71,3.06116934]
[1642448382320,4.08306856,139.75,139.71,3.06116934]
[1642448382520,5.78420895,139.78,139.73,71.65]
[1642448382723,0.15,139.81,139.74,10.29]
[1642448382921,0.15,139.81,139.74,21.16143434]
[1642448383221,0.15,139.81,139.75,1.73943434]
[1642448383521,0.15,139.81,139.77,51.0303306]
[1642448383720,0.15,139.81,139.77,61.3203306]
[1642448383921,0.15,139.81,139.78,0.25]
[1642448384521,0.15,139.81,139.79,3.0321]
[1642448385923,0.15,139.81,139.8,0.02888872]
[1642448387933,0.15,139.81,139.8,43.29032716]
[1642448388529,0.15,139.81,139.8,0.02888872]
[1642448390563,45.85224116,139.84,139.8,0.02888872]
[1642448390564,45.63020295,139.84,139.8,0.02888872]
[1642448390761,0.25,139.83,139.8,0.02888872]
[1642448391162,0.25,139.83,139.81,3.0321]
[1642448391561,45.63020295,139.84,139.81,3.0321]
[1642448392261,10.7291,139.85,139.81,3.0321]
[1642448392462,0.25,139.84,139.81,3.0321]
[1642448394366,10.9798,139.84,139.81,3.0321]
[1642448394567,34.8217262,139.83,139.79,0.33689029]
[1642448394766,37.85392617,139.83,139.79,0.58689029]
[1642448395066,43.85392617,139.83,139.79,0.58689029]
[1642448395966,54.58452617,139.83,139.81,0.02886867]
[1642448396172,73.25,139.82,139.81,0.02886867]
[1642448397580,0.25,139.82,139.81,0.02886867]
[1642448397977,34.25,139.82,139.81,0.02886867]
[1642448398980,0.25,139.82,139.81,0.02886867]
[1642448400882,61.25,139.82,139.81,0.02886867]
[1642448401081,61.25,139.82,139.79,0.33687024]
[1642448401280,10.7325,139.81,139.79,0.33687024]
[1642448401487,45.27159649,139.8,139.79,0.33687024]
[1642448401680,45.52159649,139.8,139.79,0.33687024]
[1642448403584,10.7325,139.81,139.79,0.33687024]
[1642448403784,10.731,139.83,139.79,0.33687024]
[1642448404186,16.731,139.83,139.79,0.33687024]
[1642448404583,58.07676119,139.83,139.79,0.33687024]
[1642448404785,0.25,139.82,139.79,0.33687024]
[1642448405085,3.03219997,139.81,139.79,0.33687024]
[1642448406086,3.03219997,139.81,139.79,0.30800157]
[1642448406488,3.03219997,139.81,139.79,10.59800157]
[1642448406887,3.03219997,139.81,139.8,3.0321]
[1642448407087,3.03219997,139.81,139.8,44.04578579]
[1642448407287,38.39257196,139.87,139.8,44.04578579]
[1642448407513,10.7288,139.86,139.8,44.04578579]
[1642448407914,16.7288,139.86,139.8,44.04578579]
[1642448409013,0.25,139.85,139.8,44.04578579]
[1642448409414,6.0,139.86,139.8,44.04578579]
[1642448409614,10.4835,139.92,139.81,10.54]
[1642448409814,0.35903079,139.94,139.81,10.8]
[1642448410015,0.35903079,139.94,139.82,1.73448161]
[1642448410217,0.35903079,139.94,139.83,10.29]
[1642448410416,57.81321533,139.92,139.84,71.38555482]
[1642448410615,47.08911533,139.92,139.84,81.67555482]
[1642448410817,0.35903079,139.94,139.85,0.25]
[1642448411020,0.35903079,139.94,139.86,10.29]
[1642448411616,12.278112,139.93,139.86,10.29]
[1642448411816,41.292274,139.92,139.86,10.29]
[1642448412618,0.25,139.91,139.86,10.29]
[1642448413018,10.9746,139.91,139.86,10.29]
[1642448413418,16.9746,139.91,139.86,10.29]
[1642448413621,16.9746,139.91,139.86,10.59800157]
[1642448414118,10.7232,139.93,139.87,45.2620577]
[1642448414417,10.7232,139.93,139.87,55.8120577]
[1642448414617,0.35903079,139.94,139.87,55.8120577]
[1642448415623,11.08123079,139.94,139.87,55.8120577]
[1642448415821,48.21330856,139.93,139.87,55.5520577]
[1642448416022,48.21330856,139.93,139.89,0.02870834]
[1642448416226,54.21330856,139.93,139.89,0.02870834]
[1642448416827,0.25,139.92,139.89,0.02870834]
[1642448417027,3.03219997,139.91,139.89,0.02870834]
[1642448418028,3.03219997,139.91,139.89,10.31870834]
[1642448418228,3.03219997,139.91,139.89,13.35080834]
[1642448420332,54.21330856,139.93,139.89,13.35080834]
[1642448421232,53.93108092,139.93,139.89,13.35080834]
[1642448422734,2.03875127,139.9,139.89,13.35080834]
[1642448423334,2.03875127,139.9,139.89,15.33528995]
[1642448423536,0.35903079,139.94,139.89,15.59528995]
[1642448423735,0.35903079,139.94,139.9,58.9893183]
[1642448423942,0.35903079,139.94,139.91,10.29]